bitfinex-derivatives/quotes_BTCF0:USTF0_20240820
["timestamp","ask_amount","ask_price","bid_price","bid_amount"]
[1724167228589,0.3608,59145.0,59144.0,0.067615]
[1724167228793,0.5008,59145.0,59144.0,0.1964262]
[1724167228997,0.14,59145.0,59144.0,0.1964262]
[1724167229201,0.001,59149.0,59144.0,0.12879413]
[1724167229397,0.001,59149.0,59148.0,0.06761]
[1724167229696,0.3608,59164.0,59148.0,0.35315504]
[1724167229895,0.17025364,59154.0,59150.0,0.10082337]
[1724167230101,0.17025364,59154.0,59153.0,0.0840294]
[1724167230296,0.23785764,59154.0,59153.0,0.12879245]
[1724167231198,0.23785764,59154.0,59153.0,0.08403259]
[1724167231503,0.067605,59153.0,59150.0,0.08403259]
[1724167231701,0.428407,59151.0,59149.0,0.08406871]
[1724167232004,0.598407,59151.0,59150.0,0.2128559]
[1724167232202,0.237607,59151.0,59150.0,0.12878719]
[1724167232402,0.237607,59151.0,59150.0,0.21285063]
[1724167232592,0.237607,59151.0,59150.0,0.1963913]
[1724167232798,0.17,59151.0,59150.0,0.1963913]
[1724167233303,0.001,59151.0,59150.0,0.19638983]
[1724167233792,0.001,59151.0,59150.0,0.067608]
[1724167234197,0.001,59151.0,59136.0,0.067624]
[1724167234198,0.067609,59149.0,59148.0,0.0841262]
[1724167234396,0.067609,59150.0,59149.0,0.067608]
[1724167234703,0.067612,59147.0,59146.0,0.067613]
[1724167235006,0.568412,59147.0,59146.0,0.067613]
[1724167235201,0.5008,59147.0,59142.0,0.1517432]
[1724167235402,0.067616,59143.0,59142.0,0.067617]
[1724167235612,0.428412,59147.0,59146.0,0.067613]
[1724167235799,0.578412,59147.0,59146.0,0.067613]
[1724167236207,0.002,59149.0,59148.0,0.06761]
[1724167236804,0.001,59149.0,59148.0,0.06761]
[1724167237111,0.001,59149.0,59148.0,0.11810093]
[1724167237902,0.067606,59152.0,59151.0,0.067607]
[1724167239406,0.068606,59152.0,59151.0,0.067607]
[1724167239715,0.001,59152.0,59151.0,0.574767]
[1724167240005,0.00025364,59154.0,59153.0,0.067605]
[1724167240513,0.00025364,59154.0,59153.0,0.574765]
[1724167241098,0.00025364,59154.0,59151.0,0.3608]
[1724167241305,0.067606,59152.0,59151.0,0.428406]
[1724167241500,0.067606,59152.0,59151.0,0.067606]
[1724167241998,0.428406,59152.0,59151.0,0.067606]
[1724167242202,0.067608,59150.0,59149.0,0.05054038]
[1724167242515,0.067608,59150.0,59143.0,0.00947134]
[1724167242516,0.14,59150.0,59146.0,0.067612]
[1724167242720,0.067617,59144.0,59143.0,0.067616]
[1724167243207,0.067619,59141.0,59140.0,0.1181883]
[1724167243408,0.3608,59144.0,59143.0,0.067616]
[1724167243721,0.3608,59156.0,59142.0,0.3608]
[1724167243909,0.14125364,59154.0,59153.0,0.067605]
[1724167244111,0.00125364,59154.0,59153.0,0.067605]
[1724167244302,0.01085872,59154.0,59153.0,0.067605]
[1724167244806,0.00125364,59154.0,59153.0,0.067605]
[1724167245008,0.3608,59163.0,59162.0,0.067595]
[1724167245204,0.3608,59168.0,59167.0,0.067589]
[1724167245805,0.06759,59166.0,59164.0,0.067592]
[1724167246115,0.3608,59168.0,59160.0,0.067596]
[1724167246304,0.3608,59161.0,59159.0,0.00025364]
[1724167246511,0.067597,59160.0,59159.0,0.00025364]
[1724167246907,0.3608,59161.0,59159.0,0.00025364]
[1724167247215,0.3608,59161.0,59160.0,0.066597]
[1724167247216,0.5108,59161.0,59160.0,0.066597]
[1724167247403,0.15,59161.0,59160.0,0.066597]
[1724167247606,0.15,59161.0,59160.0,0.11713472]
[1724167247805,0.5108,59161.0,59160.0,0.066597]
[1724167248006,0.5108,59161.0,59160.0,0.11714239]
[1724167248306,0.067597,59160.0,59159.0,0.05079903]
[1724167248511,0.067597,59160.0,59159.0,0.00025364]
[1724167248512,0.217597,59160.0,59159.0,0.00025364]
[1724167249714,0.223597,59160.0,59159.0,0.00025364]
[1724167249909,0.295194,59160.0,59159.0,0.00025364]
[1724167250405,0.295194,59160.0,59149.0,0.05054539]
[1724167250406,1.202314,59160.0,59149.0,0.05054539]
[1724167250609,1.202314,59160.0,59143.0,0.03888709]
[1724167250610,0.7216,59150.0,59143.0,0.03888709]
[1724167250907,0.3608,59144.0,59143.0,0.067616]
[1724167251517,0.428415,59144.0,59143.0,0.067616]
[1724167251716,0.067618,59142.0,59139.0,0.06762]
[1724167252420,0.067619,59141.0,59139.0,0.06762]
[1724167252911,0.067619,59141.0,59133.0,0.00933338]
[1724167253109,0.067619,59141.0,59132.0,0.0841262]
[1724167253305,0.067619,59141.0,59139.0,0.06762]
[1724167253713,0.068619,59141.0,59139.0,0.06762]
[1724167254011,0.001,59141.0,59135.0,0.067625]
[1724167254223,0.067626,59135.0,59131.0,0.00164]
[1724167254410,0.067626,59135.0,59131.0,0.00953016]
[1724167254605,0.067626,59135.0,59125.0,0.0841262]
[1724167255116,0.067626,59135.0,59118.0,0.16846837]
[1724167255117,0.067633,59129.0,59123.0,0.0841262]
[1724167255314,0.3608,59132.0,59122.0,0.3608]
[1724167255542,0.3608,59132.0,59131.0,0.06763]
[1724167256110,0.428429,59132.0,59131.0,0.06763]
[1724167256721,0.3618,59132.0,59131.0,0.06763]
[1724167256913,0.429429,59132.0,59131.0,0.06763]
[1724167257214,0.067634,59128.0,59126.0,0.067635]
[1724167257421,0.067632,59129.0,59127.0,0.067634]
[1724167257720,0.067633,59128.0,59127.0,0.067634]
[1724167258325,0.067631,59130.0,59129.0,0.067632]
[1724167259315,0.3628,59132.0,59131.0,0.06763]
[1724167259316,0.002,59132.0,59131.0,0.06763]
[1724167259511,0.001,59132.0,59131.0,0.06763]
[1724167260425,0.3618,59132.0,59131.0,0.06763]
[1724167261122,0.3608,59132.0,59131.0,0.06763]
[1724167261516,0.3618,59132.0,59131.0,0.06763]
[1724167262114,0.3618,59132.0,59124.0,0.067637]
[1724167262324,0.3618,59132.0,59122.0,0.00942274]
[1724167262325,0.3608,59126.0,59125.0,0.067636]
[1724167263727,0.3608,59131.0,59130.0,0.067631]
[1724167265223,0.3608,59131.0,59130.0,3.837631]
[1724167265619,0.42843,59131.0,59130.0,3.77]
[1724167265826,0.42843,59131.0,59120.0,0.3608]
[1724167265827,0.5108,59131.0,59120.0,0.3608]
[1724167266024,0.5108,59131.0,59124.0,0.067638]
[1724167266025,0.428437,59125.0,59124.0,0.067638]
[1724167267629,0.429437,59125.0,59124.0,0.067638]
[1724167267837,0.430437,59125.0,59124.0,0.067638]
[1724167268831,0.430437,59125.0,59121.0,3.77152]
[1724167268832,0.13528,59122.0,59121.0,0.00152]
[1724167269035,0.13528,59122.0,59112.0,0.0001565]
[1724167269036,0.135302,59113.0,59112.0,0.0001565]
[1724167269353,1.084602,59113.0,59112.0,0.0001565]
[1724167269536,0.578451,59113.0,59112.0,0.0001565]
[1724167269731,0.428451,59113.0,59112.0,0.0001565]
[1724167270039,0.3608,59117.0,59112.0,0.0001565]
[1724167270222,0.3608,59117.0,59116.0,0.067647]
[1724167270627,0.00025364,59118.0,59117.0,0.067646]
[1724167270930,0.3608,59122.0,59121.0,0.067641]
[1724167271522,0.3608,59122.0,59121.0,0.065641]
[1724167271934,0.3608,59122.0,59112.0,0.37041239]
[1724167272138,0.067647,59117.0,59116.0,0.00025364]
[1724167272626,0.00025364,59127.0,59121.0,0.067641]
[1724167272627,0.00929519,59124.0,59121.0,0.067641]
[1724167272834,0.3608,59124.0,59121.0,0.067641]
[1724167273035,0.3608,59124.0,59121.0,0.037721]
[1724167273343,0.005,59122.0,59121.0,0.037721]
[1724167273534,0.005,59122.0,59116.0,0.00025364]
[1724167273535,0.005,59122.0,59117.0,0.067645]
[1724167273733,0.8725,59118.0,59112.0,0.00761239]
[1724167274036,0.8725,59118.0,59094.0,0.3608]
[1724167274037,0.428451,59113.0,59094.0,0.3608]
[1724167274342,0.42846,59105.0,59094.0,0.3608]
[1724167274641,0.3533,59105.0,59094.0,0.3608]
[1724167274843,0.00017478,59104.0,59094.0,0.3608]
[1724167275045,0.00017478,59104.0,59100.0,0.067665]
[1724167275444,0.00017478,59104.0,59094.0,0.3608]
[1724167275445,0.00017478,59104.0,59101.0,0.067664]
[1724167275645,0.34847478,59105.0,59094.0,0.37012386]
[1724167275851,0.3608,59113.0,59099.0,0.3608]
[1724167275852,0.00025364,59108.0,59099.0,0.3608]
[1724167276046,0.36105364,59108.0,59099.0,0.3608]
[1724167276243,0.00025364,59108.0,59107.0,0.428457]
[1724167276443,0.00025364,59108.0,59107.0,0.067657]
[1724167277246,0.00025364,59108.0,59095.0,0.067671]
[1724167277545,0.00025364,59108.0,59096.0,0.067669]
[1724167277546,0.3608,59098.0,59096.0,0.067669]
[1724167277742,0.067658,59107.0,59095.0,0.3608]
[1724167277938,0.14,59107.0,59095.0,0.35893498]
[1724167278147,0.207658,59107.0,59095.0,0.35893498]
[1724167278353,0.207658,59107.0,59102.0,0.067662]
[1724167278549,0.067659,59106.0,59102.0,0.067662]
[1724167278750,0.227659,59106.0,59102.0,0.067662]
[1724167279252,0.227659,59106.0,59103.0,0.067661]
[1724167279456,0.227659,59106.0,59104.0,0.067661]
[1724167279848,0.00125364,59108.0,59107.0,0.067657]
[1724167280250,0.067658,59107.0,59099.0,0.3608]
[1724167280553,0.3608,59105.0,59091.0,0.06721437]
[1724167280749,0.3608,59100.0,59090.0,0.00845033]
[1724167280953,0.067668,59098.0,59088.0,0.3608]
[1724167281252,0.3608,59100.0,59088.0,0.3608]
[1724167281253,0.067669,59097.0,59088.0,0.3608]
[1724167281453,0.14,59097.0,59088.0,0.3608]
[1724167281642,0.067667,59099.0,59088.0,0.3608]
[1724167281847,0.067668,59098.0,59095.0,0.067671]
[1724167282046,0.237668,59098.0,59095.0,0.067671]
[1724167282449,0.61176001,59100.0,59088.0,0.37048934]
[1724167282450,0.36176001,59100.0,59088.0,0.37048934]
[1724167282653,0.00955414,59101.0,59100.0,0.067665]
[1724167282855,0.16,59101.0,59100.0,0.067665]
[1724167284576,0.5218,59101.0,59098.0,0.067667]
[1724167286148,0.5218,59101.0,59099.0,0.067666]
[1724167286563,0.589465,59101.0,59099.0,0.067666]
[1724167286862,0.589465,59101.0,59091.0,3.77]
[1724167286863,0.5218,59101.0,59091.0,3.77]
[1724167287058,0.067667,59099.0,59091.0,3.77]
[1724167287361,0.227667,59099.0,59091.0,3.77]
[1724167287856,0.16,59099.0,59097.0,0.067669]
[1724167288255,0.16,59099.0,59098.0,0.067668]
[1724167289356,0.59272,59101.0,59100.0,0.13533]
[1724167289357,0.00192,59101.0,59100.0,0.13533]
[1724167289559,0.00025364,59108.0,59107.0,0.067657]
[1724167289753,0.00025364,59108.0,59107.0,0.496114]
[1724167290263,0.00963705,59110.0,59109.0,0.067655]
[1724167290455,0.3608,59119.0,59108.0,0.3608]
[1724167290652,0.3608,59119.0,59117.0,0.067646]
[1724167290653,0.5208,59119.0,59117.0,0.067646]
[1724167290955,0.53029815,59119.0,59118.0,0.067645]
[1724167291463,0.67948,59121.0,59120.0,0.067643]
[1724167291464,0.00088,59121.0,59120.0,0.067643]
[1724167291660,0.5308,59121.0,59120.0,0.067643]
[1724167291965,0.00025364,59124.0,59123.0,0.067639]
[1724167292159,0.00953394,59124.0,59123.0,0.067639]
[1724167292369,0.00025364,59124.0,59123.0,0.067639]
[1724167293064,0.00025364,59124.0,59123.0,0.065639]
[1724167293566,0.00125364,59124.0,59123.0,0.065639]
[1724167295758,0.00025364,59124.0,59123.0,0.065639]
[1724167295955,0.00125364,59124.0,59123.0,0.076639]
[1724167297367,0.00125364,59124.0,59123.0,0.584039]
[1724167297560,0.067625,59136.0,59123.0,0.584039]
[1724167297862,0.07722097,59136.0,59128.0,0.3608]
[1724167298257,0.07722097,59136.0,59133.0,0.067628]
[1724167298853,0.07722097,59136.0,59134.0,0.067626]
[1724167299256,0.07822097,59136.0,59134.0,0.067626]
[1724167299464,0.07822097,59136.0,59135.0,0.067625]
[1724167299661,0.001,59136.0,59135.0,0.067625]
[1724167299866,0.3608,59149.0,59148.0,0.067611]
[1724167300087,0.3608,59149.0,59148.0,0.033701]
[1724167300379,0.09427107,59153.0,59148.0,0.32689]
[1724167300569,0.09427107,59153.0,59148.0,0.29298]
[1724167300769,0.00960107,59153.0,59152.0,0.033696]
[1724167300972,0.3608,59157.0,59148.0,0.292766]
[1724167301353,0.3608,59157.0,59156.0,0.067601]
[1724167301555,0.3608,59157.0,59147.0,0.00025364]
[1724167301556,0.7216,59157.0,59147.0,0.00025364]
[1724167301877,0.00969875,59157.0,59156.0,0.066961]
[1724167302163,0.00969875,59157.0,59148.0,0.3608]
[1724167302164,0.00025364,59158.0,59148.0,0.3608]
[1724167302364,0.00025364,59158.0,59149.0,3.77]
[1724167303071,0.3608,59157.0,59148.0,0.3608]
[1724167303459,0.3608,59157.0,59153.0,0.067604]
[1724167303659,0.3608,59157.0,59151.0,0.067607]
[1724167303660,0.3608,59155.0,59151.0,0.067607]
[1724167303872,0.5308,59155.0,59148.0,0.013]
[1724167304072,0.5308,59155.0,59147.0,0.00025364]
[1724167304073,0.3608,59155.0,59154.0,0.067604]
[1724167304257,0.01076075,59158.0,59157.0,0.0676]
[1724167304766,0.00976075,59158.0,59157.0,0.0676]
[1724167305373,0.00025364,59158.0,59157.0,0.0676]
[1724167306468,0.00025364,59158.0,59157.0,0.0736]
[1724167308170,0.00025364,59158.0,59157.0,0.006]
[1724167308369,0.23785264,59158.0,59157.0,0.00231908]
[1724167308572,1.21257164,59158.0,59157.0,0.00231908]
[1724167309073,0.06785264,59158.0,59157.0,0.00231908]
[1724167309773,0.06785264,59158.0,59157.0,0.006]
[1724167309973,0.23785264,59158.0,59157.0,0.006]
[1724167310467,0.17025364,59158.0,59149.0,0.3608]
[1724167310667,0.17025364,59158.0,59155.0,0.067602]
[1724167310865,0.17025364,59158.0,59149.0,0.3608]
[1724167311062,0.00025364,59158.0,59149.0,0.00941842]
[1724167311368,0.06785264,59158.0,59157.0,0.001]
[1724167311770,0.23785264,59158.0,59157.0,0.001]
[1724167312878,0.055603,59155.0,59153.0,0.053605]
[1724167313069,0.3608,59154.0,59153.0,0.053605]
[1724167313582,0.3488,59154.0,59153.0,0.053605]
[1724167313969,0.5088,59154.0,59147.0,0.00025364]
[1724167314171,0.7992,59149.0,59147.0,0.00025364]
[1724167314471,0.7992,59149.0,59094.0,0.1948641]
[1724167314472,0.9372,59149.0,59122.0,0.00864958]
[1724167314673,0.3608,59134.0,59133.0,0.067628]
[1724167314880,0.428421,59140.0,59135.0,0.067624]
[1724167315065,0.3608,59140.0,59133.0,0.3608]
[1724167315266,0.3488,59149.0,59146.0,0.067613]
[1724167315469,0.3488,59149.0,59142.0,0.06787064]
[1724167315771,0.067614,59145.0,59144.0,0.067615]
[1724167315967,0.001,59149.0,59142.0,0.00025364]
[1724167316673,0.067615,59144.0,59142.0,0.00025364]
[1724167316981,0.15,59144.0,59142.0,0.00025364]
[1724167317271,0.135232,59143.0,59142.0,0.00025364]
[1724167317473,0.305232,59143.0,59142.0,0.00025364]
[1724167317870,0.812472,59143.0,59142.0,0.00025364]
[1724167318275,1.212472,59143.0,59142.0,0.00025364]
[1724167318672,1.212472,59143.0,59115.0,0.06727842]
[1724167318673,1.07724,59143.0,59115.0,0.06727842]
[1724167318870,0.067643,59120.0,59116.0,0.067647]
[1724167319070,0.067643,59120.0,59114.0,0.067649]
[1724167319071,0.067646,59118.0,59114.0,0.067649]
[1724167319368,0.3608,59115.0,59114.0,0.067649]
[1724167319567,0.3608,59115.0,59112.0,0.00020102]
[1724167319568,0.3608,59121.0,59116.0,0.067647]
[1724167319875,0.5308,59121.0,59116.0,0.067647]
[1724167320070,0.00025364,59119.0,59116.0,0.067647]
[1724167320877,0.3608,59117.0,59112.0,0.00020102]
[1724167321174,0.3608,59117.0,59114.0,0.067649]
[1724167321368,0.3608,59117.0,59112.0,0.00020102]
[1724167321574,0.3608,59117.0,59116.0,0.067647]
[1724167322480,0.3618,59117.0,59116.0,0.067647]
[1724167322674,0.3618,59117.0,59112.0,0.00020102]
[1724167322675,0.429447,59117.0,59112.0,0.00020102]
[1724167322980,0.067651,59113.0,59112.0,0.00020102]
[1724167323171,0.305302,59113.0,59112.0,0.00020102]
[1724167323478,0.36168,59115.0,59112.0,0.06785302]
[1724167323683,0.3608,59115.0,59112.0,0.06785302]
[1724167323995,0.06765,59114.0,59112.0,0.00020102]
[1724167324182,0.067651,59113.0,59112.0,0.00020102]
[1724167324371,0.295302,59113.0,59112.0,0.00020102]
[1724167325474,0.161,59113.0,59099.0,0.360539]
[1724167325676,0.161,59113.0,59104.0,0.3608]
[1724167325677,0.001,59113.0,59104.0,0.3608]
[1724167325868,0.001,59113.0,59112.0,0.067652]
[1724167326279,0.00120102,59113.0,59112.0,0.067652]
[1724167327575,0.00020102,59113.0,59112.0,0.067652]
[1724167327774,0.3608,59121.0,59120.0,0.067643]
[1724167327979,0.3608,59121.0,59112.0,0.00975823]
[1724167328183,0.3608,59121.0,59109.0,0.3608]
[1724167328383,0.067644,59119.0,59115.0,0.067648]
[1724167328881,0.067652,59113.0,59111.0,0.00025364]
[1724167329072,0.428448,59116.0,59113.0,0.06765]
[1724167329270,0.3608,59116.0,59114.0,3.77]
[1724167329883,0.3608,59116.0,59115.0,0.067649]
[1724167330103,0.429442,59121.0,59120.0,0.067643]
[1724167330104,0.3618,59121.0,59120.0,0.067643]
[1724167330971,0.3608,59121.0,59120.0,0.06315432]
[1724167331571,0.3608,59121.0,59114.0,3.77]
[1724167331572,0.061646,59117.0,59114.0,3.77]
[1724167331777,0.061646,59117.0,59116.0,0.067647]
[1724167332175,0.055646,59117.0,59116.0,0.067647]
[1724167332376,0.055646,59117.0,59114.0,3.7718]
[1724167332377,0.3618,59121.0,59118.0,0.067645]
[1724167332588,0.5318,59121.0,59115.0,0.067648]
[1724167332784,0.067647,59117.0,59115.0,0.067648]
[1724167332980,0.067647,59117.0,59116.0,0.067647]
[1724167334086,0.067648,59115.0,59114.0,3.77188]
[1724167334305,0.067648,59115.0,59114.0,0.06765]
[1724167334590,0.3618,59121.0,59111.0,0.00025364]
[1724167334591,0.067644,59119.0,59111.0,0.00025364]
[1724167334780,0.37137016,59121.0,59120.0,0.067643]
[1724167334979,0.53037016,59121.0,59120.0,0.067643]
[1724167335383,0.53037016,59121.0,59120.0,3.837643]
[1724167335790,0.5208,59121.0,59120.0,0.067643]
[1724167336489,0.5218,59121.0,59120.0,0.075643]
[1724167338996,0.589442,59121.0,59120.0,0.075643]
[1724167340791,0.657084,59121.0,59120.0,0.00654534]
[1724167340998,0.657084,59121.0,59111.0,0.00025364]
[1724167340999,1.602924,59121.0,59111.0,0.00025364]
[1724167341297,0.067653,59111.0,59106.0,4.10835774]
[1724167341709,0.3608,59114.0,59106.0,4.10835774]
[1724167341995,0.5208,59114.0,59106.0,4.10835774]
[1724167342196,0.067653,59111.0,59110.0,0.067653]
[1724167342392,0.3608,59114.0,59106.0,0.34023774]
[1724167342594,0.3608,59114.0,59107.0,0.067658]
[1724167342595,0.067657,59108.0,59107.0,0.067658]
[1724167343195,0.16,59108.0,59106.0,0.014]
[1724167343400,0.16,59108.0,59107.0,0.067658]
[1724167343995,0.3608,59109.0,59108.0,0.067656]
[1724167344198,0.3608,59109.0,59108.0,0.13493442]
[1724167344392,0.3608,59114.0,59107.0,0.08127842]
[1724167344591,0.3608,59114.0,59113.0,0.067651]
[1724167344592,0.15,59114.0,59113.0,0.067651]
[1724167345689,0.15,59114.0,59113.0,0.13492942]
[1724167345914,0.5108,59114.0,59113.0,0.067651]
[1724167346096,0.5108,59114.0,59108.0,0.012]
[1724167346296,0.5108,59114.0,59106.0,0.04535842]
[1724167346297,0.3608,59109.0,59106.0,0.04535842]
[1724167346515,0.067658,59107.0,59106.0,0.067658]
[1724167346798,0.227658,59107.0,59106.0,0.067658]
[1724167346996,0.6008,59109.0,59108.0,0.067656]
[1724167346997,0.3618,59109.0,59108.0,0.067656]
[1724167347199,0.578455,59109.0,59108.0,0.067656]
[1724167347390,0.578455,59109.0,59104.0,0.07742648]
[1724167347391,0.06766,59105.0,59104.0,0.07742648]
[1724167350099,0.20766,59105.0,59104.0,0.07742648]
[1724167351098,0.20766,59105.0,59104.0,0.06370688]
[1724167351299,0.19566,59105.0,59104.0,0.06370688]
[1724167351598,0.14,59105.0,59104.0,0.06370688]
[1724167351806,0.141,59105.0,59104.0,0.08510337]
[1724167352597,0.00025364,59110.0,59104.0,0.08510337]
[1724167352598,0.00025364,59110.0,59109.0,0.067655]
[1724167352798,0.00025364,59110.0,59109.0,0.13531]
[1724167353001,0.00025364,59110.0,59109.0,0.067655]
[1724167354208,0.00025364,59110.0,59103.0,0.067661]
[1724167354209,0.00025364,59110.0,59094.0,0.04970417]
[1724167354210,0.135342,59095.0,59094.0,0.04970417]
[1724167354506,0.135342,59095.0,59086.0,0.00011875]
[1724167354507,0.06768,59087.0,59086.0,0.00011875]
[1724167354709,0.57848,59087.0,59086.0,0.00011875]
[1724167354897,1.01688,59087.0,59086.0,0.00011875]
[1724167355104,1.55388,59087.0,59086.0,0.00011875]
[1724167355406,0.067693,59076.0,59063.0,0.067708]
[1724167355608,0.3608,59068.0,59064.0,0.067707]
[1724167355804,0.3608,59068.0,59065.0,0.067706]
[1724167356200,0.3608,59068.0,59060.0,0.15212043]
[1724167356395,0.3608,59068.0,59060.0,0.067711]
[1724167356396,0.00011875,59067.0,59060.0,0.067711]
[1724167356595,0.3608,59061.0,59060.0,0.067711]
[1724167356804,0.00011875,59067.0,59064.0,0.067706]
[1724167357199,0.00011875,59067.0,59058.0,0.44520943]
[1724167357400,0.00011875,59067.0,59065.0,0.067706]
[1724167358307,0.00111875,59067.0,59065.0,0.067706]
[1724167359305,0.00111875,59067.0,59065.0,0.07739219]
[1724167360212,0.00111875,59067.0,59066.0,3.77]
[1724167360808,0.067686,59083.0,59078.0,0.06769]
[1724167361014,0.3608,59093.0,59066.0,4.63868]
[1724167361015,0.4384,59084.0,59070.0,0.3608]
[1724167361210,0.067703,59067.0,59066.0,3.77128]
[1724167361402,0.067703,59067.0,59066.0,3.77]
[1724167361607,0.068703,59067.0,59066.0,3.77]
[1724167361809,0.068703,59067.0,59063.0,0.3608]
[1724167361810,0.067707,59064.0,59063.0,0.3608]
[1724167362703,0.4384,59070.0,59063.0,0.3608]
[1724167362908,0.001,59064.0,59063.0,0.3608]
[1724167363515,0.068707,59064.0,59063.0,0.3608]
[1724167363702,0.068707,59064.0,59063.0,4.1308]
[1724167364016,0.001,59064.0,59063.0,4.1308]
[1724167364507,0.43800359,59070.0,59063.0,4.1308]
[1724167364710,0.43800359,59070.0,59063.0,4.198508]
[1724167364711,0.001,59064.0,59063.0,4.198508]
[1724167365116,0.00025387,59072.0,59071.0,0.067699]
[1724167365313,0.8177,59095.0,59079.0,0.067688]
[1724167365314,0.7992,59090.0,59079.0,0.067688]
[1724167365618,0.067683,59085.0,59079.0,0.067688]
[1724167365808,0.227683,59085.0,59080.0,0.067688]
[1724167366108,0.16,59085.0,59083.0,0.3608]
[1724167366307,0.067684,59084.0,59083.0,0.3608]
[1724167366509,0.237684,59084.0,59083.0,0.3608]
[1724167367013,0.17,59084.0,59083.0,0.3608]
[1724167367209,0.36197387,59090.0,59083.0,0.3608]
[1724167367417,0.17025387,59090.0,59089.0,0.3608]
[1724167367808,0.00025387,59090.0,59089.0,0.428478]
[1724167369507,0.428464,59101.0,59089.0,1.26852]
[1724167369712,0.428464,59101.0,59089.0,0.3608]
[1724167369713,0.002,59090.0,59089.0,0.3608]
[1724167369922,0.002,59090.0,59089.0,4.4916]
[1724167370609,0.002,59090.0,59089.0,4.60957422]
[1724167370805,0.00025387,59095.0,59094.0,0.067672]
[1724167371115,0.00025387,59095.0,59094.0,0.428472]
[1724167372327,0.00125387,59095.0,59094.0,0.428472]
[1724167373518,0.16125387,59095.0,59094.0,0.428472]
[1724167373714,1.46813387,59095.0,59089.0,0.06150123]
[1724167374017,0.067684,59084.0,59083.0,0.3608]
[1724167374223,0.227684,59084.0,59083.0,0.3608]
[1724167374611,0.4384,59093.0,59085.0,0.067682]
[1724167374814,0.06768,59088.0,59085.0,0.067682]
[1724167375129,0.20768,59088.0,59085.0,0.067682]
[1724167376315,0.067681,59087.0,59085.0,0.067682]
[1724167376527,0.227681,59087.0,59085.0,0.067682]
[1724167377623,0.067681,59086.0,59085.0,0.067682]
[1724167377926,0.001,59088.0,59087.0,0.06768]
[1724167378219,0.171,59088.0,59087.0,0.06768]
[1724167378718,0.17,59088.0,59087.0,0.06768]
[1724167379317,0.001,59088.0,59087.0,0.06768]
[1724167379819,0.001,59088.0,59087.0,0.13536]
[1724167380018,0.00987237,59095.0,59094.0,0.067672]
[1724167380220,0.00987237,59095.0,59094.0,0.428472]
[1724167380221,0.14987237,59095.0,59094.0,0.428472]
[1724167380520,0.21754337,59095.0,59094.0,0.428472]
[1724167381123,0.14987237,59095.0,59094.0,0.428472]
[1724167382520,0.14987237,59095.0,59094.0,0.432472]
[1724167383522,0.21754337,59095.0,59094.0,0.432472]
[1724167383717,0.21754337,59095.0,59094.0,0.3648]
[1724167385231,0.28521437,59095.0,59094.0,0.004]
[1724167385420,0.067674,59093.0,59080.0,0.05050036]
[1724167385620,0.4384,59078.0,59071.0,0.067698]
[1724167385829,0.4384,59078.0,59070.0,0.3608]
[1724167385830,0.16,59078.0,59074.0,0.05050597]
[1724167386129,0.16,59078.0,59077.0,0.067692]
[1724167386328,0.157,59078.0,59077.0,0.067692]
[1724167386724,0.11466914,59078.0,59077.0,0.067692]
[1724167387423,0.00025387,59083.0,59077.0,0.05050597]
[1724167387621,0.00025387,59083.0,59082.0,0.428486]
[1724167388040,0.067671,59096.0,59083.0,0.067685]
[1724167388331,0.067671,59095.0,59092.0,0.067674]
[1724167388538,0.217671,59095.0,59093.0,0.067673]
[1724167388918,0.15,59095.0,59094.0,0.067672]
[1724167389518,0.15,59095.0,59094.0,0.058672]
[1724167389723,0.15,59095.0,59094.0,0.10917721]
[1724167390131,0.155,59095.0,59094.0,0.10917721]
[1724167390326,0.155,59095.0,59094.0,0.058672]
[1724167390726,0.155,59095.0,59094.0,0.063672]
[1724167392825,0.15,59095.0,59094.0,0.063672]
[1724167394737,0.00088,59107.0,59095.0,0.50764]
[1724167395030,0.00976585,59119.0,59106.0,0.7216]
[1724167395232,0.06764,59123.0,59121.0,0.067641]
[1724167395424,0.4404,59132.0,59124.0,0.067638]
[1724167395425,0.067634,59128.0,59124.0,0.067638]
[1724167395624,0.508029,59132.0,59127.0,0.3608]
[1724167395823,0.00025387,59130.0,59128.0,0.067633]
[1724167396232,0.00025387,59130.0,59127.0,0.3608]
[1724167396434,0.00025387,59130.0,59129.0,0.067632]
[1724167396637,0.00025387,59130.0,59128.0,0.3608]
[1724167396638,0.067609,59149.0,59128.0,0.86816]
[1724167396823,0.7992,59154.0,59148.0,0.3608]
[1724167397024,0.866804,59154.0,59148.0,0.3608]
[1724167397628,0.87622993,59154.0,59148.0,0.3608]
[1724167399535,0.87622993,59154.0,59147.0,0.428412]
[1724167399536,0.43782993,59154.0,59147.0,0.428412]
[1724167399738,0.37022593,59154.0,59147.0,0.3608]
[1724167399927,0.00025361,59157.0,59153.0,0.428404]
[1724167400236,0.00025361,59157.0,59153.0,0.3608]
[1724167400432,0.00025361,59157.0,59156.0,0.067601]
[1724167401425,0.00025361,59157.0,59156.0,0.00939704]
[1724167401629,0.00025361,59157.0,59154.0,0.428404]
[1724167401848,0.00025361,59157.0,59156.0,0.067601]
[1724167402929,0.4384,59172.0,59163.0,0.067593]
[1724167402930,0.00973302,59167.0,59163.0,0.067593]
[1724167403241,0.00973302,59167.0,59165.0,0.3608]
[1724167403629,0.505984,59172.0,59165.0,0.3608]
[1724167404030,0.4384,59172.0,59168.0,0.067588]
[1724167404335,0.06759,59166.0,59165.0,0.3608]
[1724167404525,0.06759,59166.0,59163.0,0.00025361]
[1724167404526,0.4384,59166.0,59163.0,0.00025361]
[1724167404725,0.067592,59164.0,59163.0,0.00025361]
[1724167405135,0.067592,59164.0,59154.0,0.0096108]
[1724167405136,0.067598,59159.0,59156.0,0.067601]